fUST/lending_fUST_20250920
["ID","MTS","AMOUNT","RATE_DAILY","PERIOD"]
[386521387,1758345032685,-589.94881437,0.0002778,2]
[386521388,1758345032695,-589.94881437,0.0002778,2]
[386521389,1758345032706,-589.94881437,0.0002778,2]
[386521390,1758345032716,-589.94881437,0.0002778,2]
[386521391,1758345032727,-589.94881437,0.0002778,2]
[386521392,1758345032738,-589.94881437,0.0002778,2]
[386521393,1758345032750,-589.94881437,0.0002778,2]
[386521394,1758345032761,-589.94881437,0.0002778,2]
[386521395,1758345032772,-589.94881437,0.0002778,2]
[386521396,1758345032783,-589.94881437,0.0002778,2]
[386521397,1758345032799,-589.94881437,0.0002778,2]
[386521398,1758345032816,-589.94881437,0.0002778,2]
[386521399,1758345032827,-589.94881437,0.0002778,2]
[386521401,1758345032839,-589.94881437,0.0002778,2]
[386521402,1758345032850,-589.94881437,0.0002778,2]
[386521403,1758345032861,-589.94881437,0.0002778,2]
[386521404,1758345032871,-589.94881437,0.0002778,2]
[386521405,1758345032882,-589.94881437,0.0002778,2]
[386521406,1758345032892,-589.94881437,0.0002778,2]
[386521407,1758345032902,-589.94881437,0.0002778,2]
[386521408,1758345032912,-589.94881437,0.0002778,2]
[386521409,1758345032922,-589.94881437,0.0002778,2]
[386521410,1758345032932,-589.94881437,0.0002778,2]
[386521411,1758345032943,-589.94881437,0.0002778,2]
[386521412,1758345032953,-589.94881437,0.0002778,2]
[386521413,1758345032964,-589.94881437,0.0002778,2]
[386521414,1758345032974,-589.94881437,0.0002778,2]
[386521415,1758345032985,-589.94881437,0.0002778,2]
[386521416,1758345032995,-589.94881437,0.0002778,2]
[386521417,1758345033006,-589.94881437,0.0002778,2]
[386521418,1758345033016,-589.94881437,0.0002778,2]
[386521419,1758345033027,-589.94881437,0.0002778,2]
[386521420,1758345033038,-589.94881437,0.0002778,2]
[386521421,1758345033049,-589.94881437,0.0002778,2]
[386521422,1758345033061,-589.94881437,0.0002778,2]
[386521423,1758345033072,-589.94881437,0.0002778,2]
[386521424,1758345033083,-589.94881437,0.0002778,2]
[386521425,1758345033094,-589.94881437,0.0002778,2]
[386521426,1758345033105,-174.5308504,0.0002778,2]
[386521428,1758345038212,-415.41796397,0.0002778,2]
[386521429,1758345038222,-165.8030772,0.0002778,2]
[386521430,1758345038234,-424.14573717,0.0002778,2]
[386521431,1758345038243,-589.94881437,0.0002778,2]
[386521432,1758345038253,-589.94881437,0.0002778,2]
[386521433,1758345038262,-589.94881437,0.0002778,2]
[386521434,1758345038271,-566.36856099,0.0002778,2]
[386521487,1758345040401,-23.58025338,0.0002778,2]
[386521488,1758345040411,-589.94881437,0.0002778,2]
[386521489,1758345040421,-589.94881437,0.0002778,2]
[386521490,1758345040431,-589.94881437,0.0002778,2]
[386521491,1758345040440,-589.94881437,0.0002778,2]
[386521493,1758345040450,-589.94881437,0.0002778,2]
[386521494,1758345040460,-589.94881437,0.0002778,2]
[386521495,1758345040470,-589.94881437,0.0002778,2]
[386521496,1758345040480,-589.94881437,0.0002778,2]
[386521497,1758345040490,-589.94881437,0.0002778,2]
[386521498,1758345040500,-589.94881437,0.0002778,2]
[386521499,1758345040510,-589.94881437,0.0002778,2]
[386521501,1758345040520,-589.94881437,0.0002778,2]
[386521502,1758345040529,-589.94881437,0.0002778,2]
[386521503,1758345040539,-589.94881437,0.0002778,2]
[386521504,1758345040549,-589.94881437,0.0002778,2]
[386521505,1758345040558,-571.79654314,0.0002778,2]
[386521506,1758345040568,-571.79654314,0.0002778,2]
[386521507,1758345040578,-571.79654314,0.0002778,2]
[386521509,1758345040587,-571.79654314,0.0002778,2]
[386521510,1758345040597,-571.79654314,0.0002778,2]
[386521511,1758345040607,-571.79654314,0.0002778,2]
[386521512,1758345040616,-571.79654314,0.0002778,2]
[386521513,1758345040627,-571.79654314,0.0002778,2]
[386521514,1758345040636,-571.79654314,0.0002778,2]
[386521515,1758345040646,-571.79654314,0.0002778,2]
[386521516,1758345040656,-571.79654314,0.0002778,2]
[386521517,1758345040666,-571.79654314,0.0002778,2]
[386521518,1758345040675,-571.79654314,0.0002778,2]
[386521519,1758345040685,-571.79654314,0.0002778,2]
[386521520,1758345040695,-571.79654314,0.0002778,2]
[386521521,1758345040705,-384.26816176,0.0002778,2]
[386521533,1758345043410,-158.03479474,0.00027779,2]
[386521534,1758345043419,-106.96520526,0.00027781,2]
[386521538,1758345046239,-87.89581458,0.00027781,2]
[386521539,1758345046249,-480.0,0.00027781,2]
[386521540,1758345046259,-480.0,0.00027781,2]
[386521541,1758345046268,-480.0,0.00027781,2]
[386521542,1758345046278,-558.64,0.00027781,2]
[386521543,1758345046287,-434.06,0.00027869,3]
[386521544,1758345046296,-217.03,0.00027869,3]
[386521545,1758345046306,-651.13,0.00027869,3]
[386521546,1758345046315,-154.531181,0.00027869,7]
[386521547,1758345046324,-151.0,0.00027869,7]
[386521548,1758345046334,-151.60767073,0.00027869,2]
[386521549,1758345046343,-151.0,0.00027869,7]
[386521550,1758345046353,-151.0,0.00027869,7]
[386521551,1758345046362,-152.404914,0.00027869,7]
[386521552,1758345046372,-151.0,0.00027869,7]
[386521553,1758345046382,-151.0,0.00027869,7]
[386521554,1758345046393,-151.0,0.00027869,7]
[386521555,1758345046402,-185.74564059,0.00027869,2]
[386521556,1758345046414,-172.74145514,0.00027869,2]
[386521557,1758345046423,-846.22545856,0.00027869,2]
[386521558,1758345204664,207.60540529,0.000199,2]
[386521559,1758345398926,207.81609771,0.000199,2]
[386521560,1758345577542,207.11122303,0.000199,2]
[386521561,1758345596400,-207.11122295,0.00023786,2]
[386521563,1758345771703,186.87526954,0.000199,2]
[386521564,1758345771732,20.50574641,0.000199,2]
[386521567,1758345950607,214.065074,0.000199,2]
[386521570,1758346039104,-201.12306368,0.00023786,2]
[386521571,1758346040090,-12.94201026,0.00023786,2]
[386521572,1758346040112,-544.51328355,0.00025,30]
[386521575,1758346122437,8333.41502307,0.0002,2]
[386521576,1758346124350,1452.52990293,0.0002,2]
[386521577,1758346124372,1253.54412862,0.0002,2]
[386521581,1758346128873,1158.97,0.00027397,120]
[386521582,1758346140043,168.236803,0.00020273,2]
[386521583,1758346140589,295.9627273,0.0002037,2]
[386521584,1758346153430,214.07766052,0.000199,2]
[386521585,1758346161089,-252.37424133,0.000209,2]
[386521586,1758346161110,-218.02575867,0.00021,2]
[386521630,1758346238449,-54.76018532,0.00021,2]
[386521631,1758346238459,-204.06240757,0.00021,2]
[386521633,1758346238469,-42.97671645,0.00025,30]
[386521635,1758346238478,-214.07766047,0.00025081,2]
[386521636,1758346238488,-173.785305,0.00025464,2]
[386521639,1758346238498,-10000.0,0.00026204,2]
[386521640,1758346238507,-500.0,0.00026346,2]
[386521642,1758346238517,-500.0,0.00026346,2]
[386521643,1758346238526,-500.0,0.00026346,2]
[386521644,1758346238535,-500.0,0.00026346,2]
[386521645,1758346238544,-500.0,0.00026346,2]
[386521646,1758346238554,-500.0,0.00026346,2]
[386521647,1758346238563,-500.0,0.00026346,2]
[386521648,1758346238573,-500.0,0.00026346,2]
[386521649,1758346238583,-500.0,0.00026346,2]
[386521650,1758346238592,-500.0,0.00026346,2]
[386521651,1758346238601,-500.0,0.00026346,2]
[386521652,1758346238611,-500.0,0.00026346,2]
[386521653,1758346238620,-500.0,0.00026346,2]
[386521654,1758346238630,-500.0,0.00026346,2]
[386521655,1758346238640,-500.0,0.00026346,2]
[386521656,1758346238649,-500.0,0.00026346,2]
[386521657,1758346238658,-500.0,0.00026346,2]
[386521658,1758346238668,-549.24690724,0.00026346,2]
[386521659,1758346238681,-500.0,0.00026346,2]
[386521660,1758346238691,-500.0,0.00026346,2]
[386521661,1758346238701,-500.0,0.00026346,2]
[386521662,1758346238710,-500.0,0.00026346,2]
[386521663,1758346238719,-1835.61007756,0.00026347,2]
[386521664,1758346238730,-493.50747714,0.00026348,2]
[386521665,1758346238740,-480.0,0.00026348,2]
[386521666,1758346238750,-480.0,0.00026351,2]
[386521667,1758346238760,-480.0,0.00026351,2]
[386521668,1758346238770,-480.0,0.00026351,2]
[386521669,1758346238779,-480.0,0.00026351,2]
[386521670,1758346238789,-283.30462082,0.00026351,2]
[386521671,1758346238799,-480.0,0.00026351,2]
[386521672,1758346238809,-480.0,0.00026351,2]
[386521673,1758346238819,-480.0,0.00026351,2]
[386521674,1758346238828,-480.0,0.00026351,2]
[386521675,1758346238838,-480.0,0.00026351,2]
[386521676,1758346238847,-480.0,0.00026351,2]
[386521677,1758346238857,-495.41,0.00026351,2]
[386521678,1758346238867,-183.2755121,0.00026351,2]
[386521679,1758346238877,-480.0,0.00026351,2]
[386521680,1758346238887,-707.44,0.00026351,2]
[386521681,1758346238896,-480.0,0.00026351,2]
[386521682,1758346238906,-512.53,0.00026351,2]
[386521683,1758346238915,-12826.0069075,0.00026352,2]
[386521684,1758346238925,-404.66002134,0.00026384,2]
[386521685,1758346238935,-620.4302825,0.00026462,2]
[386521686,1758346238944,-257.48433712,0.00026475,2]
[386521687,1758346238953,-319.46,0.00026622,2]
[386521688,1758346238963,-480.0,0.00026625,2]
[386521689,1758346239088,-480.0,0.00026625,2]
[386521690,1758346239099,-480.0,0.00026625,2]
[386521691,1758346239108,-243.89327552,0.00026625,2]
[386521692,1758346239118,-480.0,0.00026625,2]
[386521693,1758346239127,-480.0,0.00026625,2]
[386521694,1758346239137,-489.45243387,0.00026625,2]
[386521695,1758346239146,-586.58,0.00026625,2]
[386521696,1758346239155,-480.0,0.00026625,2]
[386521697,1758346239164,-480.0,0.00026625,2]
[386521698,1758346239174,-707.44,0.00026625,2]
[386521699,1758346239184,-198.18159879,0.00026625,2]
[386521700,1758346239193,-260.2930341,0.00026651,2]
[386521701,1758346239203,-480.0,0.00026899,2]
[386521702,1758346239212,-480.0,0.00026899,2]
[386521703,1758346239221,-480.0,0.00026899,2]
[386521704,1758346239231,-480.0,0.00026899,2]
[386521705,1758346239240,-577.08,0.00026899,2]
[386521706,1758346239250,-480.0,0.00026899,2]
[386521707,1758346239259,-480.0,0.00026899,2]
[386521708,1758346239268,-707.44,0.00026899,2]
[386521709,1758346239278,-480.0,0.00027173,2]
[386521710,1758346239287,-480.0,0.00027173,2]
[386521711,1758346239297,-480.0,0.00027173,2]
[386521712,1758346239306,-480.0,0.00027173,2]
[386521713,1758346239315,-591.9,0.00027173,2]
[386521714,1758346239326,-480.0,0.00027173,2]
[386521715,1758346239335,-707.44,0.00027173,2]
[386521716,1758346239344,-480.0,0.00027447,2]
[386521717,1758346239354,-533.96,0.00027447,2]
[386521718,1758346239363,-480.0,0.00027447,2]
[386521719,1758346239373,-480.0,0.00027447,2]
[386521720,1758346239383,-480.0,0.00027447,2]
[386521721,1758346239392,-707.44,0.00027447,2]
[386521722,1758346239401,-233.47853244,0.00027499,2]
[386521723,1758346239411,-2124.0650071,0.000275,3]
[386521724,1758346239421,-788.8414543,0.00027564,30]
[386521725,1758346239430,-500.0,0.00027579,2]
[386521726,1758346239439,-549.9627422,0.00027635,2]
[386521727,1758346239449,-480.0,0.00027721,2]
[386521728,1758346239459,-480.0,0.00027721,2]
[386521729,1758346239469,-480.0,0.00027721,2]
[386521730,1758346239478,-480.0,0.00027721,2]
[386521731,1758346239488,-707.44,0.00027721,2]
[386521732,1758346239497,-500.0,0.00027728,2]
[386521733,1758346239506,-4197.71345208,0.00027759,2]
[386521734,1758346239515,-179.24354786,0.00027762,2]
[386521735,1758346239525,-103746.048921,0.00027763,2]
[386521736,1758346239534,-4340.715008,0.00027763,2]
[386521737,1758346239543,-49126.12944225,0.00027773,2]
[386521738,1758346239553,-350.30737224,0.00027773,2]
[386521739,1758346239562,-151.0,0.00027773,7]
[386521740,1758346239571,-151.0,0.00027773,7]
[386521741,1758346239580,-152.276991,0.00027773,7]
[386521742,1758346239590,-151.0,0.00027773,7]
[386521743,1758346239599,-151.0,0.00027773,7]
[386521744,1758346239609,-151.0,0.00027773,7]
[386521745,1758346239618,-151.0,0.00027773,7]
[386521746,1758346239627,-151.0,0.00027773,7]
[386521747,1758346239637,-151.0,0.00027773,7]
[386521748,1758346239646,-151.0,0.00027773,7]
[386521749,1758346239655,-457.436183,0.00027773,7]
[386521750,1758346239665,-457.436183,0.00027773,7]
[386521751,1758346239674,-457.436183,0.00027773,7]
[386521752,1758346239688,-457.436183,0.00027773,7]
[386521753,1758346239699,-151.0,0.00027773,7]
[386521754,1758346239708,-151.0,0.00027773,7]
[386521755,1758346239718,-151.0,0.00027773,7]
[386521756,1758346239729,-480.0,0.00027779,2]
[386521757,1758346239738,-185.07698484,0.00027779,2]
[386521758,1758346239748,-157.24898937,0.00027779,2]
[386521759,1758346239758,-498.7,0.00027779,2]
[386521760,1758346239768,-480.0,0.00027779,2]
[386521761,1758346239778,-480.0,0.00027779,2]
[386521762,1758346239788,-480.0,0.00027779,2]
[386521763,1758346239798,-509.92509138,0.00027779,2]
[386521764,1758346239807,-342.08673377,0.0002778,2]
[386521765,1758346239817,-297.46853025,0.0002778,2]
[386521766,1758346239827,-490.0010079,0.0002778,2]
[386521767,1758346239837,-488.03606376,0.0002778,2]
[386521768,1758346239847,-487.82382391,0.0002778,2]
[386521769,1758346239856,-500.82303565,0.0002778,2]
[386521770,1758346239866,-491.8626027,0.0002778,2]
[386521771,1758346239876,-488.53872383,0.0002778,2]
[386521772,1758346239885,-489.99276791,0.0002778,2]
[386521773,1758346239894,-483.71174376,0.0002778,2]
[386521774,1758346239904,-480.0,0.0002778,2]
[386521775,1758346239913,-480.0,0.0002778,2]
[386521776,1758346239922,-480.0,0.0002778,2]
[386521777,1758346239932,-482.41795617,0.0002778,2]
[386521778,1758346239941,-480.0,0.0002778,2]
[386521779,1758346239951,-494.97038218,0.0002778,2]
[386521780,1758346239960,-480.0,0.0002778,2]
[386521781,1758346239969,-480.0,0.0002778,2]
[386521782,1758346239978,-485.43787419,0.0002778,2]
[386521783,1758346239987,-480.0,0.0002778,2]
[386521784,1758346239997,-480.0,0.0002778,2]
[386521785,1758346240007,-480.0,0.0002778,2]
[386521787,1758346240016,-246.99669069,0.0002778,2]
[386521788,1758346240026,-482.8,0.0002778,2]
[386521789,1758346240035,-480.0,0.0002778,2]
[386521790,1758346240046,-480.0,0.0002778,2]
[386521791,1758346240055,-488.60781392,0.0002778,2]
[386521792,1758346240065,-480.0,0.0002778,2]
[386521793,1758346240075,-472.23981743,0.0002778,2]
[386521794,1758346240084,-478.50079093,0.0002778,2]
[386521795,1758346240093,-480.0,0.0002778,2]
[386521796,1758346240114,-480.0,0.0002778,2]
[386521797,1758346240124,-480.0,0.0002778,2]
[386521798,1758346240134,-514.5,0.0002778,2]
[386521799,1758346240143,-527.54,0.0002778,2]
[386521800,1758346240153,-480.0,0.0002778,2]
[386521801,1758346240162,-480.0,0.0002778,2]
[386521802,1758346240171,-480.0,0.0002778,2]
[386521804,1758346240181,-609.53609839,0.0002778,2]
[386521806,1758346240191,-492.17586035,0.0002778,2]
[386521808,1758346240200,-480.0,0.0002778,2]
[386521809,1758346240209,-488.21816104,0.0002778,2]
[386521811,1758346240219,-289.09419764,0.0002778,2]
[386521813,1758346240229,-480.0,0.0002778,2]
[386521815,1758346240239,-480.0,0.0002778,2]
[386521817,1758346240248,-480.0,0.0002778,2]
[386521819,1758346240257,-480.0,0.0002778,2]
[386521821,1758346240267,-492.48345588,0.0002778,2]
[386521823,1758346240276,-480.0,0.0002778,2]
[386521825,1758346240286,-480.0,0.0002778,2]
[386521827,1758346240296,-480.0,0.0002778,2]
[386521829,1758346240305,-480.0,0.0002778,2]
[386521831,1758346240315,-377.18824703,0.0002778,2]
[386521833,1758346240324,-480.0,0.0002778,2]
[386521835,1758346240333,-480.0,0.0002778,2]
[386521837,1758346240343,-480.0,0.0002778,2]
[386521839,1758346240352,-482.16324779,0.0002778,2]
[386521841,1758346240361,-480.0,0.0002778,2]
[386521843,1758346240371,-481.78751058,0.0002778,2]
[386521845,1758346240380,-480.0,0.0002778,2]
[386521847,1758346240389,-564.47274283,0.0002778,2]
[386521849,1758346240398,-480.0,0.0002778,2]
[386521851,1758346240408,-513.56439847,0.0002778,2]
[386521853,1758346240417,-486.00670462,0.0002778,2]
[386521855,1758346240427,-588.12,0.00027781,2]
[386521856,1758346240436,-480.0,0.00027781,2]
[386521857,1758346240445,-480.0,0.00027781,2]
[386521858,1758346240454,-1000.0,0.00027852,2]
[386521859,1758346240463,-1000.0,0.00027852,2]
[386521860,1758346240473,-1000.0,0.00027852,2]
[386521861,1758346240482,-1000.0,0.00027852,2]
[386521862,1758346240491,-1000.0,0.00027852,2]
[386521863,1758346240500,-1000.0,0.00027852,2]
[386521864,1758346240509,-1000.0,0.00027852,2]
[386521865,1758346240519,-799.61045593,0.00027852,2]
[386521867,1758346240528,-217.03,0.00027859,3]
[386521868,1758346240537,-651.09,0.00027859,3]
[386521869,1758346240547,-151.0,0.00027859,7]
[386521870,1758346240556,-247.997397,0.00027859,7]
[386521871,1758346240565,-151.0,0.00027859,7]
[386521872,1758346240575,-151.0,0.00027859,7]
[386521873,1758346240584,-151.0,0.00027859,7]
[386521874,1758346240594,-151.0,0.00027859,7]
[386521875,1758346240603,-151.0,0.00027859,7]
[386521876,1758346240613,-151.0,0.00027859,7]
[386521877,1758346240622,-457.436183,0.00027859,7]
[386521878,1758346240632,-457.436183,0.00027859,7]
[386521879,1758346240641,-457.436183,0.00027859,7]
[386521880,1758346240651,-457.436183,0.00027859,7]
[386521881,1758346240660,-151.0,0.00027859,7]
[386521882,1758346240669,-151.0,0.00027859,7]
[386521883,1758346240683,-151.0,0.00027859,7]
[386521884,1758346240692,-103746.048921,0.00027859,2]
[386521885,1758346240701,-4340.715008,0.00027859,2]
[386521886,1758346240710,-151.0,0.00027862,7]
[386521887,1758346240720,-151.0,0.00027862,7]
[386521888,1758346240730,-151.0,0.00027862,7]
[386521889,1758346240739,-151.0,0.00027862,7]
[386521890,1758346240748,-151.469737,0.00027862,7]
[386521891,1758346240760,-151.0,0.00027862,7]
[386521892,1758346240770,-151.0,0.00027862,7]
[386521893,1758346240780,-154.070767,0.00027862,7]
[386521894,1758346240789,-151.0,0.00027862,7]
[386521895,1758346240798,-151.0,0.00027862,7]
[386521896,1758346240807,-151.0,0.00027862,7]
[386521897,1758346240817,-152.000428,0.00027862,7]
[386521898,1758346240826,-596.276939,0.00027862,7]
[386521899,1758346240835,-596.276939,0.00027862,7]
[386521900,1758346240844,-163.499674,0.00027862,7]
[386521901,1758346240854,-596.276939,0.00027862,7]
[386521902,1758346240863,-596.276939,0.00027862,7]
[386521903,1758346240873,-151.0,0.00027862,7]
[386521904,1758346240883,-242.350998,0.00027862,7]
[386521905,1758346240893,-242.350998,0.00027862,7]
[386521906,1758346240902,-242.350998,0.00027862,7]
[386521907,1758346240912,-242.350998,0.00027862,7]
[386521908,1758346240921,-151.0,0.00027862,7]
[386521909,1758346240930,-151.0,0.00027862,7]
[386521910,1758346240939,-151.0,0.00027862,7]
[386521911,1758346240948,-151.0,0.00027862,7]
[386521912,1758346240958,-151.0,0.00027862,7]
[386521913,1758346240967,-151.0,0.00027862,7]
[386521914,1758346240976,-151.0,0.00027869,7]
[386521915,1758346240985,-151.0,0.00027869,7]
[386521916,1758346240995,-151.0,0.00027869,7]
[386521917,1758346241004,-151.0,0.00027869,7]
[386521918,1758346241014,-151.0,0.00027869,7]
[386521919,1758346241023,-151.0,0.00027869,7]
[386521920,1758346241033,-151.0,0.00027869,7]
[386521921,1758346241042,-151.0,0.00027869,7]
[386521922,1758346241052,-151.0,0.00027869,7]
[386521923,1758346241061,-151.0,0.00027869,7]
[386521924,1758346241070,-151.0,0.00027869,7]
[386521925,1758346241079,-151.0,0.00027869,7]
[386521926,1758346241089,-151.0,0.00027869,7]
[386521927,1758346241098,-153.575822,0.00027869,7]
[386521928,1758346241107,-151.0,0.00027869,7]
[386521929,1758346241116,-151.0,0.00027869,7]
[386521930,1758346241126,-151.0,0.00027869,7]
[386521931,1758346241136,-151.0,0.00027869,7]
[386521932,1758346241145,-151.0,0.00027869,7]
[386521933,1758346241155,-151.0,0.00027869,7]
[386521934,1758346241164,-596.276939,0.00027869,7]
[386521935,1758346241174,-596.276939,0.00027869,7]
[386521936,1758346241183,-596.276939,0.00027869,7]
[386521937,1758346241192,-596.276939,0.00027869,7]
[386521938,1758346241201,-166.579602,0.00027869,7]
[386521939,1758346241211,-242.350998,0.00027869,7]
[386521940,1758346241221,-242.350998,0.00027869,7]
[386521941,1758346241231,-242.350998,0.00027869,7]
[386521942,1758346241240,-242.350998,0.00027869,7]
[386521943,1758346241250,-151.0,0.00027869,7]
[386521944,1758346241259,-151.0,0.00027869,7]
[386521945,1758346241269,-154.585927,0.00027869,7]
[386521946,1758346241278,-151.0,0.00027869,7]
[386521947,1758346241287,-491.02879209,0.00027869,2]
[386521948,1758346241296,-151.0,0.00027869,7]
[386521949,1758346241306,-151.0,0.00027869,7]
[386521950,1758346241316,-503.68325166,0.00027873,5]
[386521951,1758346241326,-500.0,0.00027873,5]
[386521952,1758346241335,-502.73966054,0.00027873,5]
[386521953,1758346241344,-504.06798637,0.00027873,5]
[386521954,1758346241354,-500.0,0.00027873,5]
[386521955,1758346241364,-501.65539122,0.00027873,5]
[386521956,1758346241373,-158.72264056,0.00027873,5]
[386521957,1758346241383,-155.0,0.00027878,2]
[386521958,1758346241393,-1773.73,0.00027878,2]
[386521959,1758346241403,-190.36412377,0.00027878,2]
[386521960,1758346241413,-480.0,0.00027878,2]
[386521961,1758346241423,-151.0,0.00027879,7]
[386521962,1758346241432,-151.0,0.00027879,7]
[386521963,1758346241441,-151.0,0.00027879,7]
[386521964,1758346241450,-151.0,0.00027879,7]
[386521965,1758346241460,-151.0,0.00027879,7]
[386521966,1758346241469,-151.0,0.00027879,7]
[386521967,1758346241479,-151.0,0.00027879,7]
[386521968,1758346241489,-151.0,0.00027879,7]
[386521969,1758346241498,-151.0,0.00027879,7]
[386521970,1758346241508,-151.0,0.00027879,7]
[386521971,1758346241517,-241.0,0.00027879,7]
[386521972,1758346241527,-151.0,0.00027879,7]
[386521973,1758346241536,-1000.0,0.00027879,2]
[386521974,1758346241545,-1000.0,0.00027879,2]
[386521975,1758346241555,-1000.0,0.00027879,2]
[386521976,1758346241564,-1000.0,0.00027879,2]
[386521977,1758346241573,-1000.0,0.00027879,2]
[386521978,1758346241583,-1000.0,0.00027879,2]
[386521979,1758346241592,-1000.0,0.00027879,2]
[386521980,1758346241601,-1000.0,0.00027879,2]
[386521981,1758346241611,-1000.0,0.00027879,2]
[386521982,1758346241620,-1000.0,0.00027879,2]
[386521983,1758346241629,-1000.0,0.00027879,2]
[386521984,1758346241639,-1000.0,0.00027879,2]
[386521985,1758346241648,-503.493016,0.00027879,2]
[386521986,1758346241658,-151.0,0.00027879,7]
[386521987,1758346241669,-232.995646,0.00027879,7]
[386521988,1758346241679,-151.0,0.00027879,7]
[386521989,1758346241782,-151.0,0.00027879,7]
[386521990,1758346241791,-244.113017,0.00027879,7]
[386521991,1758346241800,-151.0,0.00027879,7]
[386521992,1758346241810,-151.0,0.00027879,7]
[386521993,1758346241820,-596.276939,0.00027879,7]
[386521994,1758346241829,-596.276939,0.00027879,7]
[386521995,1758346241839,-596.276939,0.00027879,7]
[386521996,1758346241848,-596.276939,0.00027879,7]
[386521997,1758346241859,-242.350998,0.00027879,7]
[386521998,1758346241868,-242.350998,0.00027879,7]
[386521999,1758346241878,-242.350998,0.00027879,7]
[386522000,1758346241887,-242.350998,0.00027879,7]
[386522001,1758346241897,-151.0,0.00027879,7]
[386522002,1758346241907,-151.0,0.00027879,7]
[386522003,1758346241916,-151.0,0.00027879,7]
[386522004,1758346241926,-151.0,0.00027879,7]
[386522005,1758346241935,-151.0,0.00027879,7]
[386522006,1758346241945,-151.0,0.00027879,7]
[386522007,1758346241954,-151.0,0.00027879,7]
[386522008,1758346241964,-151.0,0.00027879,7]
[386522009,1758346241974,-293.966456,0.00027879,7]
[386522010,1758346241983,-151.0,0.00027879,7]
[386522011,1758346241993,-457.436183,0.00027879,7]
[386522012,1758346242003,-457.436183,0.00027879,7]
[386522013,1758346242012,-457.436183,0.00027879,7]
[386522014,1758346242022,-457.436183,0.00027879,7]
[386522015,1758346242031,-151.0,0.00027879,7]
[386522016,1758346242041,-151.0,0.00027879,7]
[386522017,1758346242050,-500.0,0.00027879,5]
[386522018,1758346242060,-688.75087269,0.00027889,7]
[386522019,1758346242069,-151.0,0.00027889,7]
[386522020,1758346242078,-151.0,0.00027889,7]
[386522021,1758346242087,-151.0,0.00027889,7]
[386522022,1758346242097,-151.0,0.00027889,7]
[386522023,1758346242107,-153.542358,0.00027889,7]
[386522024,1758346242116,-151.0,0.00027889,7]
[386522025,1758346242125,-151.0,0.00027889,7]
[386522026,1758346242135,-151.0,0.00027889,7]
[386522027,1758346242144,-151.0,0.00027889,7]
[386522028,1758346242154,-151.0,0.00027889,7]
[386522029,1758346242163,-151.0,0.00027889,7]
[386522030,1758346242173,-151.0,0.00027889,7]
[386522031,1758346242182,-151.0,0.00027889,7]
[386522032,1758346242192,-151.0,0.00027889,7]
[386522033,1758346242201,-151.0,0.00027889,7]
[386522034,1758346242210,-151.0,0.00027889,7]
[386522035,1758346242219,-151.0,0.00027889,7]
[386522036,1758346242228,-202.516623,0.00027889,7]
[386522037,1758346242238,-151.0,0.00027889,7]
[386522038,1758346242247,-151.0,0.00027889,7]
[386522039,1758346242257,-151.0,0.00027889,7]
[386522040,1758346242266,-151.0,0.00027889,7]
[386522041,1758346242275,-209.530407,0.00027889,7]
[386522042,1758346242285,-151.0,0.00027889,7]
[386522043,1758346242294,-151.0,0.00027889,7]